bitfinex-derivatives/quotes_BNBF0:USTF0_20250509
["timestamp","ask_amount","ask_price","bid_price","bid_amount"]
[1746767378009,3.583,626.19,625.74,0.2932487]
[1746767378309,3.583,626.19,625.75,0.31961646]
[1746767378605,3.583,626.19,625.76,0.2932487]
[1746767378910,3.583,626.19,625.77,0.31960624]
[1746767379409,3.583,626.19,625.78,0.2932487]
[1746767379711,3.583,626.19,625.79,0.31959603]
[1746767380207,3.583,626.19,625.8,0.2932487]
[1746767380407,3.583,626.19,625.81,0.31958581]
[1746767380610,3.583,626.19,625.82,0.2932487]
[1746767382213,3.583,626.19,625.83,0.907]
[1746767383915,3.583,626.19,625.84,0.807]
[1746767390617,3.583,626.19,625.85,0.2933132]
[1746767391618,3.583,626.19,625.84,0.807]
[1746767392013,3.583,626.19,625.85,0.29332416]
[1746767397015,3.583,626.19,625.84,0.807]
[1746767398120,3.583,626.19,625.85,0.293311]
[1746767404827,3.583,626.19,625.86,0.743]
[1746767405127,1.324,626.19,625.87,0.293311]
[1746767406027,1.324,626.19,625.86,0.743]
[1746767406528,1.324,626.19,625.87,0.29327112]
[1746767428339,1.324,626.19,625.88,0.834]
[1746767428838,1.324,626.19,625.89,0.29327112]
[1746767433342,1.324,626.19,625.97,1.01674463]
[1746767433743,1.324,626.19,625.98,0.29327112]
[1746767436748,1.324,626.19,625.93,0.29327112]
[1746767438948,1.324,626.19,625.93,1.31001575]
[1746767439149,1.324,626.19,625.94,0.29327112]
[1746767441253,1.324,626.19,625.92,1.29453128]
[1746767441652,1.324,626.19,625.93,0.29325345]
[1746767442956,1.324,626.19,626.05,1.01674463]
[1746767443256,1.644,626.23,626.06,0.29325345]
[1746767443456,1.123,626.23,626.06,0.29325345]
[1746767445257,1.123,626.23,626.06,1.30999808]
[1746767445556,1.123,626.23,626.07,0.29325345]
[1746767446760,1.123,626.23,626.09,1.01674463]
[1746767447058,1.123,626.23,626.1,0.29325345]
[1746767450161,1.123,626.23,626.07,0.29325345]
[1746767454959,1.195,626.24,626.07,0.29325345]
[1746767456063,1.195,626.24,626.06,0.775]
[1746767456362,1.195,626.24,626.07,0.29321434]
[1746767469780,1.195,626.24,626.07,0.61266743]
[1746767469977,1.195,626.24,626.08,0.29321434]
[1746767470375,2.126,626.41,626.08,0.29321434]
[1746767473283,1.215,626.4,626.08,0.29321434]
[1746767473784,0.62,626.39,626.08,0.29321434]
[1746767478084,0.62,626.39,626.09,1.038]
[1746767478390,0.62,626.39,626.1,0.29321434]
[1746767483394,0.62,626.39,626.11,0.997]
[1746767483695,0.62,626.39,626.12,0.29321434]
[1746767484000,0.62,626.39,626.11,0.997]
[1746767485997,0.62,626.39,626.12,0.29317371]
[1746767487300,0.62,626.39,626.11,0.997]
[1746767488003,0.62,626.39,626.12,0.29317419]
[1746767497806,0.62,626.39,626.11,1.27476115]
[1746767498810,1.215,626.4,626.11,1.27476115]
[1746767500213,2.441,626.46,626.11,1.27476115]
[1746767500611,2.441,626.46,626.11,0.997]
[1746767500812,2.441,626.46,626.11,1.27475339]
[1746767501915,0.62,626.45,626.11,1.27475339]
[1746767504018,1.719,626.45,626.12,0.2932715]
[1746767504318,1.719,626.45,626.11,1.27475339]
[1746767504721,1.719,626.45,626.12,0.2932715]
[1746767510823,1.719,626.45,626.13,0.822]
[1746767511022,1.719,626.45,626.14,0.2932715]
[1746767513724,1.719,626.45,626.15,0.838]
[1746767514120,1.719,626.45,626.16,0.2932715]
[1746767517026,1.719,626.45,626.15,0.838]
[1746767517327,1.719,626.45,626.16,0.29323308]
[1746767522631,1.719,626.45,626.15,1.11573455]
[1746767524530,1.719,626.45,626.15,0.838]
[1746767524931,1.719,626.45,626.15,1.1157545]
[1746767527531,1.719,626.45,626.15,0.838]
[1746767527730,1.719,626.45,626.15,1.1157545]
[1746767530540,1.719,626.45,626.15,0.838]
[1746767531038,1.719,626.45,626.15,1.1157545]
[1746767533539,1.719,626.45,626.15,0.838]
[1746767533834,1.719,626.45,626.15,1.1157545]
[1746767535044,1.719,626.45,626.16,0.29325923]
[1746767536943,1.719,626.45,626.15,0.27773455]
[1746767537246,1.719,626.45,626.16,0.29325923]
[1746767537744,1.719,626.45,626.16,1.50925923]
[1746767538448,1.719,626.45,626.17,0.29325923]
[1746767540548,1.719,626.45,626.16,1.49373344]
[1746767542543,1.719,626.45,626.16,1.216]
[1746767542748,1.719,626.45,626.16,1.49372901]
[1746767545652,1.719,626.45,626.16,1.216]
[1746767545851,1.719,626.45,626.16,1.49372901]
[1746767548554,1.719,626.45,626.16,1.216]
[1746767548848,1.719,626.45,626.16,1.49371349]
[1746767549054,1.719,626.45,626.16,2.29571349]
[1746767550949,1.719,626.45,626.17,0.29321885]
[1746767564773,1.719,626.45,626.16,2.2957002]
[1746767565173,1.719,626.45,626.17,0.29319364]
[1746767566473,1.719,626.45,626.16,0.802]
[1746767566773,1.719,626.45,626.16,1.0797002]
[1746767569573,1.719,626.45,626.16,0.802]
[1746767569774,1.719,626.45,626.16,2.2057002]
[1746767572482,1.719,626.45,626.16,1.928]
[1746767572685,1.719,626.45,626.17,0.29321035]
[1746767574984,1.719,626.45,626.17,1.37921035]
[1746767575483,1.719,626.45,626.18,0.29321035]
[1746767578282,1.719,626.45,626.18,1.30995498]
[1746767578682,1.719,626.45,626.19,0.29321035]
[1746767580789,1.719,626.45,626.21,1.01674463]
[1746767581190,1.719,626.45,626.22,0.29321035]
[1746767583291,1.719,626.45,626.2,0.29321035]
[1746767584994,1.719,626.45,626.22,1.01674463]
[1746767585496,1.719,626.45,626.23,0.29321035]
[1746767597003,1.719,626.45,626.22,0.57091276]
[1746767597404,1.719,626.45,626.23,0.29321035]
[1746767598408,1.719,626.45,626.22,0.27770241]
[1746767599508,1.719,626.45,626.17,1.086]
[1746767599808,1.719,626.45,626.22,0.27770795]
[1746767600402,1.719,626.45,626.23,0.29320124]
[1746767601106,1.719,626.45,626.22,0.27770795]
[1746767602510,1.719,626.45,626.17,1.086]
[1746767603111,1.719,626.45,626.18,0.29316908]
[1746767603510,1.719,626.45,626.19,0.27769022]
[1746767603911,1.719,626.45,626.2,0.29316908]
[1746767608216,1.719,626.45,626.28,1.01674463]
[1746767608514,1.099,626.45,626.28,1.01674463]
[1746767609317,1.099,626.45,626.29,0.29316908]
[1746767609718,2.871,626.54,626.29,0.29316908]
[1746767610120,2.871,626.54,626.23,0.27766696]
[1746767610416,2.871,626.54,626.24,0.29315742]
[1746767610619,2.35,626.54,626.24,0.29315742]
[1746767611821,2.35,626.54,626.25,1.174]
[1746767612022,0.621,626.53,626.26,0.29315742]
[1746767613619,1.127,626.52,626.26,0.29315742]
[1746767616422,1.127,626.52,626.27,0.999]
[1746767616623,1.127,626.52,626.28,0.29315742]
[1746767619026,1.127,626.52,626.27,0.999]
[1746767619328,1.127,626.52,626.28,0.29314649]
[1746767625433,1.127,626.52,626.27,1.27666031]
[1746767625626,1.127,626.52,626.28,0.29314696]
[1746767628235,1.127,626.52,626.27,1.27665367]
[1746767629532,1.127,626.52,626.27,0.999]
[1746767629935,1.127,626.52,626.27,1.27665145]
[1746767632534,1.127,626.52,626.27,0.999]
[1746767632935,1.127,626.52,626.27,1.27665145]
[1746767635536,1.127,626.52,626.27,0.999]
[1746767635836,1.127,626.52,626.27,1.27665145]
[1746767637835,0.621,626.53,626.27,1.27665145]
[1746767638437,0.621,626.53,626.27,0.999]
[1746767638739,0.621,626.53,626.27,1.27667693]
[1746767638939,1.414,626.61,626.27,1.27667693]
[1746767639438,1.414,626.61,626.27,2.08267693]
[1746767639932,1.414,626.61,626.28,0.29315984]
[1746767640239,1.414,626.61,626.27,2.08267693]
[1746767640639,1.021,626.6,626.27,2.08267693]
[1746767641542,1.021,626.6,626.27,1.805]
[1746767641941,0.621,626.59,626.27,1.805]
[1746767642138,0.621,626.59,626.27,2.08268025]
[1746767644546,0.621,626.59,626.27,1.805]
[1746767645037,0.621,626.59,626.27,2.08268136]
[1746767647641,0.621,626.59,626.27,1.805]
[1746767647844,0.621,626.59,626.27,2.08264813]
[1746767653551,0.621,626.59,626.27,1.805]
[1746767653850,0.621,626.59,626.27,2.08264813]
[1746767654054,1.021,626.6,626.27,2.08264813]
[1746767656649,1.021,626.6,626.28,0.29316273]
[1746767657153,0.621,626.59,626.28,0.29316273]
[1746767658449,0.621,626.59,626.27,1.08364813]
[1746767659556,0.621,626.59,626.27,0.806]
[1746767660054,0.621,626.59,626.28,0.29317089]
[1746767660756,0.621,626.59,626.28,1.31817089]
[1746767661251,0.621,626.59,626.29,0.29317089]
[1746767665252,0.621,626.59,626.28,1.025]
[1746767665457,0.621,626.59,626.29,0.2931677]
[1746767667161,0.907,626.58,626.29,0.2931677]
[1746767669357,0.907,626.58,626.28,1.30266807]
[1746767670952,0.907,626.58,626.28,2.41266807]
[1746767671357,0.907,626.58,626.29,0.29316789]
[1746767675463,0.907,626.58,626.28,2.4126725]
[1746767675961,0.907,626.58,626.29,0.2931806]
[1746767676861,0.907,626.58,626.28,2.4126725]
[1746767677561,0.907,626.58,626.28,2.135]
[1746767677865,0.907,626.58,626.28,2.4126725]
[1746767680565,0.907,626.58,626.28,2.135]
[1746767680863,0.907,626.58,626.28,2.41265699]
[1746767683561,1.528,626.58,626.28,2.135]
[1746767683965,1.528,626.58,626.28,2.41265699]
[1746767684268,1.528,626.58,626.29,0.29313582]
[1746767688265,1.528,626.58,626.28,3.42939497]
[1746767689572,1.528,626.58,626.28,3.15174463]
[1746767689973,1.528,626.58,626.28,3.4293839]
[1746767691271,1.528,626.58,626.28,2.41263927]
[1746767692571,1.528,626.58,626.28,2.135]
[1746767692881,1.528,626.58,626.28,2.41263927]
[1746767695578,1.528,626.58,626.28,2.135]
[1746767695883,1.528,626.58,626.28,2.41263927]
[1746767698578,1.528,626.58,626.28,2.135]
[1746767698979,1.528,626.58,626.28,2.41263927]
[1746767700380,1.528,626.58,626.29,0.29312016]
[1746767702283,1.528,626.58,626.29,1.43312016]
[1746767702680,1.528,626.58,626.3,0.29312016]
[1746767705284,1.528,626.58,626.29,1.41766253]
[1746767707585,1.528,626.58,626.29,1.14]
[1746767708082,1.528,626.58,626.29,1.41766253]
[1746767712586,1.528,626.58,626.3,0.29315668]
[1746767712888,1.528,626.58,626.29,1.41766253]
[1746767714784,1.528,626.58,626.3,0.29314446]
[1746767718391,1.528,626.58,626.3,1.43714446]
[1746767718890,1.528,626.58,626.31,0.29314446]
[1746767720891,1.528,626.58,626.3,1.144]
[1746767722591,1.528,626.58,626.31,0.29306052]
[1746767724492,1.528,626.58,626.3,1.144]
[1746767726793,1.528,626.58,626.31,0.29306255]
[1746767728593,1.528,626.58,626.3,1.144]
[1746767728795,1.528,626.58,626.3,1.42161269]
[1746767729088,1.528,626.58,626.31,0.2930592]
[1746767731695,1.528,626.58,626.31,0.61238988]
[1746767732096,1.528,626.58,626.32,0.2930592]
[1746767737203,1.528,626.58,626.33,1.032]
[1746767737701,1.528,626.58,626.34,0.2930592]
[1746767750812,1.528,626.58,626.33,1.30960937]
[1746767751110,1.528,626.58,626.34,0.29304049]
[1746767759320,1.528,626.58,626.33,1.30963152]
[1746767760120,1.528,626.58,626.34,0.29308288]
[1746767760617,1.528,626.58,626.44,1.01674463]
[1746767761120,1.804,626.68,626.44,1.01674463]
[1746767762922,1.804,626.68,626.33,1.30963152]
[1746767763222,1.804,626.68,626.34,0.29308606]
[1746767763924,0.878,626.67,626.34,0.29308606]
[1746767764115,1.499,626.67,626.34,0.29308606]
[1746767770631,1.499,626.67,626.39,1.01674463]
[1746767771030,1.499,626.67,626.4,0.29308606]
[1746767771228,1.499,626.67,626.4,1.40808606]
[1746767771730,1.499,626.67,626.41,0.29308606]
[1746767779238,1.499,626.67,626.4,1.115]
[1746767779638,1.499,626.67,626.41,0.2931236]
[1746767780937,1.499,626.67,626.41,1.5831236]
[1746767781336,1.499,626.67,626.42,0.2931236]
[1746767781636,1.499,626.67,626.41,1.29]
[1746767781938,1.499,626.67,626.42,0.29312206]
[1746767784038,0.878,626.67,626.42,0.29312206]
[1746767786640,0.622,626.66,626.42,0.29312206]
[1746767792046,1.078,626.65,626.42,0.29312206]
[1746767795350,1.078,626.65,626.41,1.56761933]
[1746767795551,1.078,626.65,626.42,0.847]
[1746767798650,1.078,626.65,626.42,1.938]
[1746767799952,1.078,626.65,626.43,0.29313184]
[1746767805147,1.078,626.65,626.42,1.938]
[1746767816657,1.078,626.65,626.43,0.29312479]
[1746767817258,1.071,626.75,626.43,0.29312479]
[1746767818360,0.622,626.74,626.43,0.29312479]
[1746767819355,0.622,626.74,626.43,1.60312479]
[1746767819959,0.622,626.74,626.43,1.31]
[1746767820461,1.237,626.73,626.43,1.31]
[1746767820760,1.237,626.73,626.44,0.29312429]
[1746767820961,1.237,626.73,626.43,1.31]
[1746767822466,1.237,626.73,626.44,0.293115]
[1746767836084,1.237,626.73,626.43,1.58758833]
[1746767836382,1.237,626.73,626.44,0.29308444]
[1746767836783,1.237,626.73,626.43,1.31]
[1746767836983,1.237,626.73,626.44,0.2930846]
[1746767837578,1.237,626.73,626.43,1.58758833]
[1746767837883,1.237,626.73,626.44,0.29308578]
[1746767842685,1.237,626.73,626.43,1.31]
[1746767842985,1.237,626.73,626.43,1.58761491]
[1746767843387,0.622,626.72,626.43,2.77461491]
[1746767845789,0.622,626.72,626.43,2.497]
[1746767846088,0.622,626.72,626.43,2.77462709]
[1746767848589,1.039,626.71,626.43,2.77462709]
[1746767848789,1.039,626.71,626.43,2.497]
[1746767849090,1.039,626.71,626.43,2.77463262]
[1746767851689,1.039,626.71,626.43,2.497]
[1746767852087,1.039,626.71,626.43,2.77463262]
[1746767854694,1.039,626.71,626.43,2.497]
[1746767855096,1.039,626.71,626.43,2.77463262]
[1746767857795,1.039,626.71,626.43,2.497]
[1746767857993,1.039,626.71,626.43,2.77461712]
[1746767859100,0.622,626.7,626.43,2.77461712]
[1746767860699,0.622,626.7,626.43,2.497]
[1746767861003,0.622,626.7,626.43,2.77461823]
[1746767863704,0.622,626.7,626.43,2.497]
[1746767864003,0.622,626.7,626.43,2.77461823]
[1746767864702,1.779,626.7,626.43,2.77461823]
[1746767868706,1.779,626.7,626.44,0.29313248]
[1746767872505,1.779,626.7,626.45,1.155]
[1746767873810,1.779,626.7,626.46,0.29313069]
[1746767874307,1.779,626.7,626.45,1.155]
[1746767887215,1.779,626.7,626.46,1.345]
[1746767898827,1.779,626.7,626.47,0.29314032]
[1746767902936,1.779,626.7,626.46,1.62262598]
[1746767903336,1.779,626.7,626.47,0.29313796]
[1746767903636,1.779,626.7,626.48,1.085]
[1746767903932,1.779,626.7,626.49,0.29313796]
[1746767906239,1.779,626.7,626.48,1.085]
[1746767919755,1.779,626.7,626.49,0.29308849]
[1746767921456,1.779,626.7,626.48,1.36259055]
[1746767922356,1.779,626.7,626.49,0.29305872]
[1746767922958,1.779,626.7,626.48,1.36259055]
[1746767924754,1.779,626.7,626.49,0.862]
[1746767933066,1.779,626.7,626.5,0.2930826]
[1746767934261,1.779,626.7,626.51,1.039]
[1746767934661,1.157,626.7,626.51,1.039]
[1746767936162,1.157,626.7,626.52,0.29308324]
[1746767937669,1.157,626.7,626.51,1.039]
[1746767946578,1.157,626.7,626.52,1.324]
[1746767993818,1.157,626.7,626.52,2.198]
[1746768117724,0.31913705,626.69,626.52,2.198]
[1746768120427,0.26658836,626.68,626.52,2.198]
[1746768120627,0.31914723,626.67,626.52,2.198]
[1746768120820,0.26658836,626.66,625.75,1.01674463]
[1746768121020,0.26658836,626.66,625.23,1.01674463]
[1746768121219,0.26658836,626.66,625.76,0.27787426]
[1746768121424,0.26658836,626.66,625.23,1.01674463]
[1746768121624,0.26658836,626.66,625.24,0.61338342]
[1746768121825,0.26658836,626.66,625.76,0.27793196]
[1746768122025,0.31915742,626.65,625.25,0.61337831]
[1746768122230,0.26658836,626.64,625.26,0.61337319]
[1746768122426,0.31916761,626.63,625.27,0.31986181]
[1746768122730,0.31916761,626.63,625.27,1.25786181]
[1746768123230,0.31916761,626.63,625.28,0.29350603]
[1746768123634,1.349,626.62,625.29,1.01674463]
[1746768123928,0.31917779,626.61,625.3,0.31984647]
[1746768124126,0.31917779,626.61,625.3,0.6133525]
[1746768124326,0.31917779,626.61,625.31,0.29350603]
[1746768124530,1.064,626.6,625.31,0.29350603]
[1746768124732,0.31918798,626.59,625.31,0.29350603]
[1746768125131,0.524,626.58,625.31,0.29350603]
[1746768125334,1.147,626.58,625.31,0.29350603]
[1746768131338,1.147,626.58,625.3,0.59778065]
[1746768131538,1.147,626.58,625.32,0.29350666]
[1746768131837,1.147,626.58,625.31,0.29350666]
[1746768136440,2.044,626.58,625.31,0.29350666]
[1746768137844,2.044,626.58,625.3,0.59778065]
[1746768138241,2.044,626.58,625.31,0.29350592]
[1746768139046,2.044,626.58,625.3,0.59778065]
[1746768139448,2.044,626.58,625.31,0.29350545]
[1746768140642,3.376,626.58,625.31,0.29350545]
[1746768140843,3.376,626.58,625.31,1.36250545]
[1746768141043,3.376,626.58,625.32,0.29350545]
[1746768152057,3.376,626.58,625.31,1.069]
[1746768152356,3.376,626.58,625.32,0.29350648]
[1746768154457,3.376,626.58,625.44,1.01674463]
[1746768154757,3.376,626.58,625.45,0.29350648]
[1746768154951,4.429,626.58,625.45,0.29350648]
[1746768156262,4.429,626.58,625.49,1.01674463]
[1746768156655,4.429,626.58,625.5,0.29350648]
[1746768158462,4.429,626.58,625.5,1.31025111]
[1746768158762,4.429,626.58,625.51,0.29350648]
[1746768161065,4.429,626.58,625.43,0.29350648]
[1746768163167,4.429,626.58,625.42,0.2779131]
[1746768163466,4.429,626.58,625.43,0.29347553]
[1746768163765,4.429,626.58,625.42,0.2779131]
[1746768164166,4.429,626.58,625.43,0.29347555]
[1746768167270,4.429,626.58,625.42,0.27790311]
[1746768167663,4.429,626.58,625.43,0.29347555]
[1746768171370,4.429,626.58,625.51,1.01674463]
[1746768172269,4.429,626.58,625.52,0.29347555]
[1746768177375,4.429,626.58,625.61,0.29347555]
[1746768180169,4.429,626.58,625.56,0.29347555]
[1746768185778,4.429,626.58,625.57,1.01674463]
[1746768186173,4.429,626.58,625.58,0.2934803]
[1746768188479,4.429,626.58,625.62,1.01674463]
[1746768189179,4.429,626.58,625.63,0.2934803]
[1746768190875,4.429,626.58,625.63,1.31022493]
[1746768191280,4.429,626.58,625.64,0.2934803]
[1746768193884,4.429,626.58,625.62,1.01674463]
[1746768193885,4.429,626.58,625.63,0.2934803]
[1746768195388,4.429,626.58,625.64,1.184]
[1746768195682,4.429,626.58,625.65,0.2934803]
[1746768198890,4.429,626.58,625.64,1.184]
[1746768199590,0.31919817,626.57,625.64,1.184]
[1746768202290,1.41019817,626.57,625.64,1.184]
[1746768202590,1.93419817,626.57,625.64,1.184]
[1746768203090,2.55719817,626.57,625.64,1.184]
[1746768203590,3.86719817,626.57,625.64,1.184]
[1746768203891,4.98219817,626.57,625.64,1.184]
[1746768206496,4.98219817,626.57,625.63,0.27790866]
[1746768206996,4.98219817,626.57,625.64,0.29351324]
[1746768208297,4.98219817,626.57,625.63,0.27790866]
[1746768208497,4.98219817,626.57,625.65,0.85]
[1746768214203,4.98219817,626.57,625.65,2.011]
[1746768220808,0.26664211,626.56,625.65,2.011]
[1746768222403,0.31920836,626.55,625.65,2.011]
[1746768223510,0.26664211,626.54,625.65,2.011]
[1746768223710,0.31921855,626.53,625.65,2.011]
[1746768224209,0.88964211,626.52,625.65,2.011]
[1746768224410,1.80164211,626.52,625.65,2.011]
[1746768224610,0.26664211,626.51,625.65,2.011]
[1746768224811,0.31923383,626.5,625.65,2.011]
[1746768231918,2.531,626.49,625.65,2.011]
[1746768232313,2.531,626.49,625.65,1.99916238]
[1746768233322,0.27797414,626.48,625.65,1.99916238]
[1746768235625,0.524,626.47,625.65,1.99916238]
[1746768236827,0.524,626.47,625.65,1.161]
[1746768237527,0.31925422,626.46,625.65,1.161]
[1746768241828,0.26613288,626.45,625.65,1.161]
[1746768242130,0.31926441,626.44,625.65,1.161]
[1746768242532,0.26613288,626.43,625.65,1.161]
[1746768242732,0.3192746,626.42,625.65,1.161]
[1746768245835,1.363,626.41,625.65,1.161]
[1746768246935,0.623,626.4,625.65,1.161]
[1746768247133,0.31928989,626.39,625.65,1.161]
[1746768252439,1.5,626.38,625.65,1.161]
[1746768253338,1.12,626.37,625.65,1.161]
[1746768267646,0.623,626.36,625.65,1.161]
[1746768268147,0.623,626.36,625.66,0.29354116]
[1746768268343,1.007,626.35,625.66,0.29354116]
[1746768268847,1.007,626.35,625.65,0.29354116]
[1746768269148,0.524,626.34,625.65,0.57148755]
[1746768269446,0.524,626.34,625.66,0.29354116]
[1746768271852,0.524,626.34,625.66,1.32754116]
[1746768272050,0.524,626.34,625.67,0.29354116]
[1746768274254,0.843,626.33,625.67,0.29354116]
[1746768276954,0.843,626.33,625.66,1.31192641]
[1746768277949,0.843,626.33,625.66,1.034]
[1746768278354,0.843,626.33,625.66,1.31192641]
[1746768280956,0.843,626.33,625.66,1.034]
[1746768281353,0.843,626.33,625.66,1.31194861]
[1746768283959,0.843,626.33,625.66,1.034]
[1746768284363,0.843,626.33,625.66,1.31194861]
[1746768285063,1.698,626.33,625.66,1.31194861]
[1746768285360,2.321,626.33,625.66,1.31194861]
[1746768286362,3.319,626.33,625.66,1.31194861]
[1746768287062,3.319,626.33,625.66,1.034]
[1746768287361,3.319,626.33,625.66,1.31196859]
[1746768289966,3.319,626.33,625.66,1.034]
[1746768290161,3.319,626.33,625.66,1.31196859]
[1746768291565,3.843,626.33,625.66,1.31196859]
[1746768292971,3.843,626.33,625.66,2.189]
[1746768293171,3.843,626.33,625.66,2.46696859]
[1746768295973,3.843,626.33,625.66,2.189]
[1746768296473,3.843,626.33,625.66,2.46696859]
[1746768298973,3.843,626.33,625.66,2.189]
[1746768299473,3.843,626.33,625.66,2.46696859]
[1746768301873,3.843,626.33,625.66,2.189]
[1746768302172,3.843,626.33,625.66,2.46693973]
[1746768307974,3.843,626.33,625.66,2.189]
[1746768308374,3.843,626.33,625.66,2.46693085]
[1746768310976,3.843,626.33,625.66,2.189]
[1746768313279,3.843,626.33,625.66,2.46693085]
[1746768313977,3.843,626.33,625.66,2.189]
[1746768314377,3.843,626.33,625.66,2.46693085]
[1746768316879,3.843,626.33,625.66,2.189]
[1746768319787,3.843,626.33,625.66,2.46693973]
[1746768322987,3.843,626.33,625.66,2.189]
[1746768323188,3.843,626.33,625.66,2.46693973]
[1746768325987,3.843,626.33,625.66,2.189]
[1746768326188,3.843,626.33,625.66,2.46693973]
[1746768331891,3.843,626.33,625.66,2.189]
[1746768332191,3.843,626.33,625.66,2.46693973]
[1746768334992,3.843,626.33,625.66,2.189]
[1746768335293,3.843,626.33,625.66,2.46693973]
[1746768340999,3.843,626.33,625.66,2.189]
[1746768341198,3.843,626.33,625.66,2.46693973]
[1746768343999,3.843,626.33,625.66,2.189]
[1746768344200,3.843,626.33,625.66,2.46693973]
[1746768347001,3.843,626.33,625.66,2.189]
[1746768347300,3.843,626.33,625.66,2.46694639]
[1746768350001,3.843,626.33,625.66,2.189]
[1746768350302,3.843,626.33,625.66,2.46694639]
[1746768353005,3.843,626.33,625.66,2.189]
[1746768353306,3.843,626.33,625.66,2.4669586]
[1746768356006,3.843,626.33,625.66,2.189]
[1746768356406,3.843,626.33,625.66,2.46696859]
[1746768359114,3.843,626.33,625.66,2.189]
[1746768359315,3.843,626.33,625.66,2.46696859]
[1746768361912,3.843,626.33,625.66,2.189]
[1746768362218,3.843,626.33,625.66,2.46696859]
[1746768364820,3.843,626.33,625.66,2.189]
[1746768366821,0.31932558,626.32,625.66,2.189]
[1746768370021,2.17032558,626.32,625.66,2.189]
[1746768370326,3.44032558,626.32,625.66,2.189]
[1746768370529,4.06332558,626.32,625.66,2.189]
[1746768370728,5.17732558,626.32,625.66,2.189]
[1746768435566,0.26615576,626.31,625.66,2.189]
[1746768436766,0.31932558,626.32,625.66,2.189]
[1746768438865,1.62832558,626.32,625.66,2.189]
[1746768439063,3.18732558,626.32,625.66,2.189]
[1746768439263,5.06932558,626.32,625.66,2.189]
[1746768459381,5.06932558,626.32,625.67,0.29352145]
[1746768460081,5.06932558,626.32,625.65,0.29352145]
[1746768461483,5.06932558,626.32,625.64,0.27794861]
[1746768461681,5.06932558,626.32,625.65,0.985]
[1746768463887,5.06932558,626.32,625.65,2.047]
[1746768500611,4.75,626.32,625.66,0.29350051]
[1746768502113,4.75,626.32,625.65,1.062]
[1746768502611,4.75,626.32,625.66,0.29346912]
[1746768503314,4.75,626.32,625.66,1.71446912]
[1746768503614,4.75,626.32,625.67,0.29346912]
[1746768508920,4.75,626.32,625.66,1.69888314]
[1746768509219,4.75,626.32,625.66,1.421]
[1746768509419,4.75,626.32,625.67,0.29340291]
[1746768510620,4.75,626.32,625.66,1.69887426]
[1746768512021,4.75,626.32,625.66,1.421]
[1746768512221,4.75,626.32,625.67,0.29340632]
[1746768514521,4.75,626.32,625.67,1.34840632]
[1746768515022,4.75,626.32,625.68,0.29340632]
[1746768517523,4.75,626.32,625.67,1.33287315]
[1746768518119,4.75,626.32,625.67,1.055]
[1746768518519,4.75,626.32,625.67,1.33287315]
[1746768519521,4.75,626.32,625.68,0.29340576]
[1746768525031,4.75,626.32,625.68,1.68440576]
[1746768525436,4.75,626.32,625.69,0.29340576]
[1746768528238,4.75,626.32,625.7,1.153]
[1746768528642,4.75,626.32,625.71,0.29340576]